Cogmind - Beta 16 @@@ ROGUE MODE // 2025.11.24 @ 19:25:52 Player: Maxfecteau Result: Destroyed by NA-59O(R) with Subdweller Laser Performance ------------- Evolutions (0) 0 Regions Visited (2) 400 Robots Destroyed (9) 45 Value Destroyed (129) 129 Prototype IDs (0) 0 Alien Tech Used (0) 0 Bonus (0) 0 TOTAL SCORE: 574 Bonus ------- None Cogmind --------- Core Integrity 0/250 Matter 264/300 Energy 100/100 System Corruption 0% Temperature Cool (6) Movement Core (150) Ox2 Location -10/Subcaves Parts ------- > --- POWER (1) -------- (None) > --- PROPULSION (2) --- (None) > --- UTILITY (2) ------ Small Storage Unit ECM Suite > --- WEAPON (2) ------- Light Assault Rifle > --- INVENTORY (8) ---- Improved Terrain Scanner Improved Terrain Scanner Seismic Detector Seismic Detector Seismic Detector Seismic Detector Peak State ------------ > --- POWER ------------ Light Ion Engine > --- PROPULSION ------- Light Treads Light Treads > --- UTILITY ---------- Small Storage Unit Seismic Detector > --- WEAPON ----------- Medium Laser Small Laser > --- INVENTORY -------- Light Ion Engine Improved Terrain Scanner Improved Terrain Scanner Seismic Detector Seismic Detector Seismic Detector Seismic Detector Light Assault Rifle [Rating: 8] Favorites ----------- Power Light Ion Engine Engine Light Ion Engine Propulsion Light Treads Treads Light Treads Utility Small Storage Unit Device Seismic Detector Storage Small Storage Unit Weapon Medium Laser Energy Gun Medium Laser Ballistic Gun Light Assault Rifle Build | -11 -10 -10 ------- Run | Yrd Mat Sub Slots Evolved . | . . . Power . | . . . Propulsion . | . . . Utility . | . . . Weapon . | . . . Parts Attached 10 | 7 . 3 Power 2 | 1 . 1 Engine 2 | 1 . 1 Core . | . . . Reactor . | . . . Propulsion 2 | 2 . . Treads 2 | 2 . . Leg . | . . . Wheel . | . . . Hover . | . . . Flight . | . . . Utility 3 | 2 . 1 Device 2 | 1 . 1 Storage 1 | 1 . . Processor . | . . . Hackware . | . . . Protection . | . . . Artifact . | . . . Weapon 3 | 2 . 1 Energy Gun 2 | 2 . . Energy Cannon . | . . . Ballistic Gun 1 | . . 1 Ballistic Cannon . | . . . Launcher . | . . . Special Weapon . | . . . Impact Weapon . | . . . Slashing Weapon . | . . . Piercing Weapon . | . . . Special Melee Weapon . | . . . Unidentified Prototypes . | . . . Parts Lost 7 | . . 7 Power 2 | . . 2 Propulsion 2 | . . 2 Utility 1 | . . 1 Weapon 2 | . . 2 Highest Loss Streak 5 | . . 5 To Critical Strikes 1 | . . 1 Average Backups 6 | 4 8 7 Power . | . 1 . Propulsion . | . . . Utility 4 | 3 6 6 Weapon . | . 1 . Tool/Special . | . . . Unused Backups 7 | 1 . 6 Power . | . . . Propulsion . | . . . Utility 7 | 1 . 6 Weapon . | . . . Tool/Special . | . . . Average Slot Usage (%) 93 | . 100 87 Engine 12 | . 14 10 Treads 26 | . 28 24 Device 13 | . 14 12 Storage 14 | . 14 14 Energy Gun 24 | . 28 21 Ballistic Gun 1 | . . 3 Peak Build Rating 8 | 8 8 8 Average Rating 7 | 6 8 7 On Entrance 5 | . 8 8 Avg Prop Armor Cover (%) . | . . . Naked Turns . | . . . Heaviest Build 13 | 12 12 13 Greatest Support 40 | 40 40 40 Greatest Overweight (x) . | . . . Average Overweight (x) . | . . . Largest Inventory Capacity 8 | 8 8 8 Average Capacity 7 | 7 8 8 Most Carried 8 | 8 8 8 Average Carried 6 | 4 8 7 Final Capacity 8 | 8 8 8 Final Carried 8 | 8 8 6 Class Distribution -------------------- 100% | Mutant Dominant Class ---------------- Mutant | -10/Materials Mutant | -10/Subcaves Resources | -11 -10 -10 ----------- Run | Yrd Mat Sub Matter Collected 270 | 270 . . Remotely . | . . . Salvage Created 216 | 146 . 70 Parts 22 | 20 . 2 Haulers Intercepted . | . . . Recyclers Shooed . | . . . Parts Field Recycled . | . . . Retrieved Matter . | . . . Parts Self-Destructed . | . . . Prevented . | . . . Parts Restored . | . . . Kills | -11 -10 -10 ------- Run | Yrd Mat Sub Combat Hostiles Destroyed 2 | . . 2 Guns 2 | . . 2 Classes Destroyed 2 | 1 . 1 Tunneler 7 | 7 . . Subdweller 2 | . . 2 Best Kill Streak 2 | 2 . 1 Combat Bots Only 1 | . . 1 Max Kills in Single Turn 1 | 1 . 1 Gunslinging . | . . . Exploded . | . . . Melee . | . . . Uniques/NPCs Destroyed . | . . . Combat | -11 -10 -10 -------- Run | Yrd Mat Sub Hostile Shots Fired 43 | . . 43 Missed 7 | . . 7 Hits 36 | . . 36 Projectile 36 | . . 36 Critical Strikes 3 | . . 3 Damage Taken 801 | . . 801 Core 252 | . . 252 Absorbed by Shields . | . . . Core Remaining (%) 100 | 100 . . Volleys Fired 65 | 29 1 35 Largest 2 | 2 2 2 Hottest 90 | 90 90 90 Shots Fired 112 | 58 2 52 Gun 112 | 58 2 52 Cannon . | . . . Launcher . | . . . Special . | . . . Kinetic 21 | . . 21 Thermal 91 | 58 2 31 Explosive . | . . . Electromagnetic . | . . . Robot Hit Streak 42 | 5 1 42 Robot Miss Streak 7 | 7 1 1 Penetration Max . | . . . Secondary Targets . | . . . Shots Hit Robots 76 | 27 1 48 Core Hits 16 | 7 1 8 Critical Kills . | . . . Critical Parts Destroyed . | . . . Critical Strikes 2 | 1 . 1 Burn 2 | 1 . 1 Melee Attacks . | . . . Impact . | . . . Slashing . | . . . Piercing . | . . . Sneak Attacks . | . . . Combat Hostiles . | . . . Follow-up Attacks . | . . . Damage Inflicted 800 | 333 11 456 Guns 800 | 333 11 456 Cannons . | . . . Explosions . | . . . Melee . | . . . Ramming . | . . . Kinetic 133 | . . 133 Thermal 667 | 333 11 323 Explosive . | . . . Electromagnetic . | . . . Impact . | . . . Slashing . | . . . Piercing . | . . . Highest Corruption . | . . . Average Corruption . | . . . Corruption Purged . | . . . Corruption Blocked . | . . . Overload Shots . | . . . Overflow Damage . | . . . Projectiles . | . . . Explosions . | . . . Melee . | . . . Knockbacks . | . . . Impact . | . . . Kinetic . | . . . Secondary . | . . . Self-Inflicted Damage . | . . . Shots . | . . . Rammed . | . . . Targets Rammed . | . . . Kicked . | . . . Crushed . | . . . Highest Temperature 269 | 120 30 269 Average Temperature 38 | 32 18 153 Received Heat Transfer 540 | . . 540 Effects 2 | . . 2 Interference 2 | . . 2 Siege Activations . | . . . Martial Activations . | . . . Shielding Activations . | . . . Robots Disrupted . | . . . Combat Hostiles . | . . . Robots Corrupted . | . . . Combat Hostiles . | . . . Parts Fried . | . . . Impact Corruptions . | . . . Robots Melted . | . . . Combat Hostiles . | . . . Parts Melted 2 | 1 . 1 Heat Transferred 1945 | 990 25 930 Parts Sabotaged . | . . . Parts Stolen . | . . . Parts Stripped . | . . . Power Chain Reactions . | . . . Alert | -11 -10 -10 ------- Run | Yrd Mat Sub Maximum Alert Level . | . . . Low Security (%) 100 | 100 100 . Level 1 . | . . . Level 2 . | . . . Level 3 . | . . . Level 4 . | . . . Level 5 . | . . . High Security . | . . . Max Security . | . . . Peak Influence 5 | 5 . . Initial . | . . . Average . | . . . Influence Increases 35 | 35 . . Destroy 0b10 Robot/NC 35 | 35 . . Influence Decreases 35 | 35 . . Time Decay 35 | 35 . . Squads Dispatched 1 | . 1 . Investigation . | . . . Extermination . | . . . Reinforcement 1 | . 1 . Assault . | . . . Garrison . | . . . Intercept . | . . . Searches Triggered . | . . . Construction Impeded . | . . . Haulers Reinforced . | . . . Active Scanning Responses . | . . . Cargo Convoy Interrupts . | . . . Stealth | -11 -10 -10 --------- Run | Yrd Mat Sub Distress Signals 1 | . 1 . Communications Jammed . | . . . Distress Signals . | . . . Times Spotted 7 | . 2 5 Peak Tracking Total 3 | . 2 3 Tactical Retreats 1 | . . 1 Traps | -11 -10 -10 ------- Run | Yrd Mat Sub Traps Triggered . | . . . Indirectly . | . . . Trap Hack Attempts . | . . . Triggered . | . . . Disarmed . | . . . Reprogrammed . | . . . Reused . | . . . Traps Extracted . | . . . Installed . | . . . Triggered . | . . . Machines | -11 -10 -10 ---------- Run | Yrd Mat Sub Machines Disabled . | . . . Max in Single Turn . | . . . Machines Repaired . | . . . Machines Dismantled . | . . . Machines Sabotaged . | . . . Overloaded Fab Kills . | . . . Hacking | -11 -10 -10 --------- Run | Yrd Mat Sub Machines Accessed 1 | . 1 . Terminals 1 | . 1 . Fabricators . | . . . Repair Stations . | . . . Recycling Units . | . . . Scanalyzers . | . . . Garrison Access . | . . . Total Hacks 3 | . 3 . Successful . | . . . Failed 3 | . 3 . Catastrophic . | . . . Database Lockouts . | . . . Manual . | . . . Terminals 3 | . 3 . Fabricators . | . . . Repair Stations . | . . . Recycling Units . | . . . Scanalyzers . | . . . Garrison Access . | . . . Terminal Hacks . | . . . Fabricator Hacks . | . . . Repair Station Hacks . | . . . Recycling Unit Hacks . | . . . Scanalyzer . | . . . Garrison Access Hacks . | . . . Unauthorized Hacks . | . . . Terminals . | . . . Fabricators . | . . . Repair Stations . | . . . Recycling Units . | . . . Scanalyzers . | . . . Garrison Access . | . . . Data Cores Recovered . | . . . Used . | . . . Hacking Detections 1 | . 1 . Full Trace Events 1 | . 1 . Feedback Events . | . . . Feedback Blocked . | . . . Robot Schematics Acquired . | . . . Robots Built . | . . . Authchips . | . . . Time . | . . . Total Robot Build Rating . | . . . Part Schematics Acquired . | . . . Parts Built . | . . . Authchips . | . . . Time . | . . . Total Part Build Rating . | . . . Part Studies Acquired . | . . . Parts Repaired . | . . . Time . | . . . Parts Recycled . | . . . Recycled Matter . | . . . Retrieved Matter . | . . . Retrieved Components . | . . . Parts Scanalyzed . | . . . Part Schematics Acquired . | . . . Parts Damaged . | . . . Bothacking | -11 -10 -10 ------------ Run | Yrd Mat Sub Used RIF Installer . | . . . Robots Hacked . | . . . Non-combat . | . . . Combat . | . . . Robot Hacks Applied . | . . . Relay Couplers Released . | . . . Fabnet Peak Effective % . | . . . Robots Rewired . | . . . Allies Hacked . | . . . Hacks Repelled . | . . . Allies | -11 -10 -10 -------- Run | Yrd Mat Sub Total Allies . | . . . Largest Group . | . . . Highest-Rated Group . | . . . Highest-Rated Ally . | . . . Total Orders . | . . . Ally Attacks . | . . . Total Damage . | . . . Kills . | . . . Allies Corrupted . | . . . Allies Melted . | . . . Intel | -11 -10 -10 ------- Run | Yrd Mat Sub Active Infowar (turns) 862 | 527 195 140 Seismic 830 | 527 195 108 ECM 32 | . . 32 Robot Analysis Total . | . . . Derelict Logs Recovered . | . . . Drone Launches . | . . . Drone Recoveries . | . . . Exploration | -11 -10 -10 ------------- Run | Yrd Mat Sub Turns Passed 999 | 587 195 217 Spaces Moved 480 | 302 104 74 Core 1 | 1 . . Treads 479 | 301 104 74 Legs . | . . . Wheels . | . . . Hover . | . . . Flight . | . . . Fastest Speed 50 | 50 160 160 Average Speed 159 | 159 160 160 Slowest Speed 160 | 160 160 160 Overloaded Moves . | . . . Propulsion Burnouts . | . . . Robots Hopped . | . . . Potential Cave-ins . | . . . Cave-ins Triggered . | . . . Exploration Rate (%) 14 | 15 20 7 Regions Visited 2 Branch Regions 1 Pre-discovered Areas . | . . . Known Exits Taken . | . . . Unknown Exits Taken 2 | 1 1 . Scrap Searched . | . . . Spaces Dug . | . . . Terrain Destroyed . | . . . Melee . | . . . Projectile . | . . . AOE . | . . . Terrain Rammed . | . . . Walls Destroyed . | . . . Machines Disabled . | . . . Actions | -11 -10 -10 --------- Run | Yrd Mat Sub Total 603 | 347 131 125 Wait 39 | . 27 12 Move 478 | 301 103 74 Hop . | . . . Pick Up 9 | 9 . . Fast Attach 8 | 7 . 1 Attach 3 | . . 3 Detach . | . . . Swap . | . . . Drop 1 | 1 . . Fire 65 | 29 1 35 Melee . | . . . Ram . | . . . Kick . | . . . Crush . | . . . Escape Stasis . | . . . Rewire . | . . . Trap . | . . . Miscellaneous . | . . . Route ------- -11/Scrapyard -10/Materials (discovered 2 exits: [*Min] / [*Sub]) -10/Subcaves History --------- Turn | Location | Event 21 | -11/Scrapyard | Discovered new exit (range 15) 588 | -11/Scrapyard | Entered Materials 589 | -10/Materials | Build established: Mutant 687 | -10/Materials | Discovered new exit (range 7) 762 | -10/Materials | Discovered new exit (range 4) 783 | -10/Materials | Entered Subcaves 863 | -10/Subcaves | A Subdweller sparked back to life 986 | -10/Subcaves | Core integrity fell below 50% 996 | -10/Subcaves | Core integrity fell below 20% 1000 | -10/Subcaves | Destroyed by NA-59O(R) with Subdweller Laser Last Messages --------------- 00863_ 8J-7BB(R) creaks and sparks as it begins to move. 00881_ NC-XZS(R) suffers critical hit (Burn). 00891_ Seismic Detector destroyed. 00895_ Lgt. Ion Engine destroyed. 00908_ Sub. Monowheel melted. 00908_ NC-XZS(R) destroyed. 00914_ Acquired ECM Suite. 00944_ Med. Laser destroyed. 00944_ Critical hit (Meltdown: +300). 00946_ Overheating: System interference. 00946_ ECM Suite temporarily disabled. 00967_ Sml. Laser destroyed. 00971_ 8J-7BB(R) destroyed. 00975_ Lgt. Treads destroyed. 00977_ Subatomizers dissect the Sub. Monowheel. 00977_ Critical hit (Destroy). 00977_ Lgt. Treads destroyed. 00981_ Lgt. Ion Engine destroyed. 00987_ Subatomizers dissect the Sub. Monowheel. 00999_ NA-59O(R) affixes Scrap Shield Fragment to Scrap Shield. Map ----- +----------------------------------------------------+ | ?????????????????????????????????????????????????? | | ?????????????????????????????????????????????????? | | ?????????????????????????????????????????????????? | | ?????????????????????????????????????????????????? | | ?????????????????????????????????????????????????? | | ?????????????????????????????????????????????????? | | ?????????????????????????????????????????????????? | | ?????????????????????????????????????????????????? | | ?????????????????????????????????????????????????? | | ?????????????????????????????????????????????????? | | ?????????????????????????????????????????????????? | | ??????????????? ??????????????????????????????? | | ??????????????? ?????????????????????????????? | | ???????????????? ????????????????????????????? | | ????????????????? #???????????????????????????? | | ?????????????????? #??????????????????????????? | | ?????????????????? ##????????????????????????? | | ??????????????????? &#???????????????????????? | | ????????????????????#" ######?????????????????? | | ?????????????????????#" " ##????????????????? | | ?????????????????????# ##???????????????? | | ?????????????????????# " ###?????????????? | | ?????????????????????# #?????????????? | | ?????????????????????####"= ### #?????????????? | | ????????????????????????##%R ;#?####?????????????? | | ????????????????????????#@& ###??????????????????? | | ????????????????????????# #????????????????????? | | ??????????????????########%##????????????????????? | | ??????????????????# # #????????????????????? | | ??????????????????# #????????????????????? | | ?????????????????## ##????????????????????? | | ??????###????????# # ###?????????????????????? | | ???? ## #???????## #####???????????????????????? | | ????? ???????## #??????????????????????????? | | ?????? ??????# #??????????????????????????? | | ???????# ??????# ##??????????????????????????? | | ????????# ?????# #??????????????????????????? | | ????????# ##???# #??????????????????????????? | | ????????# ##### #??????????????????????????? | | ?#####??### # # ##??????????????????????????? | | ### #???????????????????????????? | | #???????????????????????????? | | ????# # ####???????????????????????????? | | ????# ## ## ##??????????????????????????????? | | ###?## ####?## ##??????????????????????????????? | | # ### #### #??????????????????????????????? | | #??????????????????????????????? | | ##??????????????????????????????? | | ## # ## #####???????????????????????????????? | | ?########## #???????????????????????????????????? | +----------------------------------------------------+ Best States ------------- Heat Dissipation 25 Energy Generation 10 Energy Capacity 125 Matter Stores 300 Matter Capacity 300 Sight Range 16 Terrain Scan Density 10 ECM Strength 1 Evasion (%) 40 Recoil Reduction 2 Item Schematics ----------------- None Robot Schematics ------------------ None Fabricated ------------ Nothing Repaired ---------- Nothing Studied --------- None Alien Tech Used ----------------- None Achievements -------------- None Challenges ------------ None Game ------ Seed LightHoverBeam Manual? 0 Play Time 00:08:06 Cumulative 37.6 hours Start 2025.11.24 @ 19:18:48 End 2025.11.24 @ 19:25:52 Sessions 1 Manual Loads 0 Difficulty Rogue Special Mode None Game No. 29 Rogue 29 Adventurer 0 Explorer 0 Win Type - Total 1 Types 1/0/0/0/0/0/0/0/0/0 Lore% 33 Gallery% 32 Achievement% 29 Wizard Run 0 Options --------- Layout 0 ASCII 0 Keyboard 1 Movement Arrows Keybinds 0 Fullscreen 2 Font 18/SmallcapsGlow Map View 76x50 Zoom Use 0% Tactical HUD 1 Map Filters NONE Filters NONE Steam 1 RUN: 2676b303-6ac2-4c2c-b03e-5e1f95735e2e